fUSD/lending_fUSD_20240718
["ID","MTS","AMOUNT","RATE_DAILY","PERIOD"]
[332532479,1721288107684,-759.2,0.00027671,2]
[332532480,1721288107703,-208.66566758,0.00027671,2]
[332532481,1721288107718,-664.93,0.00027671,2]
[332532482,1721288107732,-1303.0,0.00027671,2]
[332532483,1721288107747,-799.99,0.00027671,2]
[332532484,1721288107760,-779.15,0.00027671,2]
[332532485,1721288107774,-705.02,0.00027671,2]
[332532486,1721288107788,-699.13,0.00027671,2]
[332532487,1721288107802,-712.43,0.00027671,2]
[332532488,1721288107818,-615.07,0.00027671,2]
[332532489,1721288107833,-640.55,0.00027671,2]
[332532490,1721288107849,-840.9,0.00027671,2]
[332532491,1721288107863,-842.93,0.00027671,2]
[332532492,1721288107877,-1213.95,0.00027671,2]
[332532493,1721288107890,-195.19836448,0.00027671,2]
[332532494,1721288107904,-515.65,0.00027671,2]
[332532495,1721288107918,-964.94,0.00027671,2]
[332532496,1721288107932,-592.68,0.00027671,2]
[332532497,1721288107947,-6375.98,0.00027671,2]
[332532498,1721288107961,-1037.41,0.00027671,2]
[332532499,1721288107976,-1379.21,0.00027671,2]
[332532500,1721288107991,-559.08,0.00027671,2]
[332532501,1721288108005,-1444.47,0.00027671,2]
[332532502,1721288108020,-1777.51,0.00027671,2]
[332532503,1721288108035,-1147.47,0.00027671,2]
[332532504,1721288108050,-1083.93,0.00027671,2]
[332532505,1721288108063,-815.97,0.00027671,2]
[332532506,1721288108077,-1394.22,0.00027671,2]
[332532507,1721288108090,-1149.47,0.00027671,2]
[332532508,1721288108104,-588.95,0.00027671,2]
[332532509,1721288108118,-7884.99,0.00027671,2]
[332532510,1721288108131,-1142.52,0.00027671,2]
[332532511,1721288108145,-751.24,0.00027671,2]
[332532512,1721288108160,-518.01,0.00027671,2]
[332532513,1721288108175,-2350.96,0.00027671,2]
[332532514,1721288108189,-1047.43,0.00027671,2]
[332532515,1721288108203,-9262.82,0.00027671,2]
[332532516,1721288108217,-576.17,0.00027671,2]
[332532517,1721288108230,-817.71,0.00027671,2]
[332532518,1721288108244,-168.28317405,0.00027671,2]
[332532519,1721288108257,-567.84,0.00027671,2]
[332532520,1721288108274,-943.1,0.00027671,2]
[332532521,1721288108288,-714.81,0.00027671,2]
[332532522,1721288108302,-559.22,0.00027671,2]
[332532523,1721288108317,-671.4,0.00027671,2]
[332532524,1721288108331,-595.86,0.00027671,2]
[332532525,1721288108345,-1700.34,0.00027671,2]
[332532526,1721288108360,-897.02,0.00027671,2]
[332532527,1721288108374,-709.03,0.00027671,2]
[332532528,1721288108388,-812.96,0.00027671,2]
[332532529,1721288108401,-763.5,0.00027671,2]
[332532530,1721288108415,-919.85,0.00027671,2]
[332532531,1721288108428,-1583.56,0.00027671,2]
[332532532,1721288108442,-634.02,0.00027671,2]
[332532533,1721288108455,-915.85,0.00027671,2]
[332532534,1721288108471,-1450.66,0.00027671,2]
[332532535,1721288108486,-948.76,0.00027671,2]
[332532536,1721288108502,-1051.57,0.00027671,2]
[332532537,1721288108520,-2003.88,0.00027671,2]
[332532538,1721288108534,-601.06,0.00027671,2]
[332532539,1721288108549,-796.81,0.00027671,2]
[332532540,1721288108563,-1013.83,0.00027671,2]
[332532541,1721288108575,-515.65,0.00027671,2]
[332532542,1721288108589,-544.27,0.00027671,2]
[332532543,1721288108602,-503.35,0.00027671,2]
[332532544,1721288108616,-1299.19,0.00027671,2]
[332532545,1721288108631,-708.78,0.00027671,2]
[332532546,1721288108645,-1547.31,0.00027671,2]
[332532547,1721288108662,-612.66,0.00027671,2]
[332532548,1721288108678,-957.7,0.00027671,2]
[332532549,1721288108693,-999.04,0.00027671,2]
[332532550,1721288108707,-677.55,0.00027671,2]
[332532551,1721288108724,-549.83,0.00027671,2]
[332532552,1721288108739,-798.47,0.00027671,2]
[332532553,1721288108755,-695.01,0.00027671,2]
[332532554,1721288108776,-518.09,0.00027671,2]
[332532555,1721288108790,-813.28,0.00027671,2]
[332532556,1721288108805,-1656.81,0.00027671,2]
[332532557,1721288108822,-945.22,0.00027671,2]
[332532558,1721288108836,-947.17,0.00027671,2]
[332532559,1721288108852,-539.79,0.00027671,2]
[332532560,1721288108867,-706.37,0.00027671,2]
[332532561,1721288108883,-1135.75,0.00027671,2]
[332532562,1721288108897,-673.53,0.00027671,2]
[332532563,1721288108912,-3128.96,0.00027671,2]
[332532564,1721288108926,-557.31,0.00027671,2]
[332532565,1721288108941,-669.1,0.00027671,2]
[332532566,1721288108956,-3223.32,0.00027671,2]
[332532567,1721288108973,-842.49,0.00027671,2]
[332532568,1721288108988,-836.84,0.00027671,2]
[332532569,1721288109003,-542.57,0.00027671,2]
[332532570,1721288109019,-884.02,0.00027671,2]
[332532571,1721288109034,-1416.46,0.00027671,2]
[332532572,1721288109049,-525.77,0.00027671,2]
[332532573,1721288109064,-808.77,0.00027671,2]
[332532574,1721288109079,-813.18,0.00027671,2]
[332532575,1721288109094,-2204.96,0.00027671,2]
[332532576,1721288109109,-888.04,0.00027671,2]
[332532577,1721288109124,-617.34,0.00027671,2]
[332532578,1721288109140,-503.15,0.00027671,2]
[332532579,1721288109154,-500.0,0.00027671,2]
[332532580,1721288109169,-550.97,0.00027671,2]
[332532581,1721288109183,-556.49,0.00027671,2]
[332532582,1721288109198,-1258.11,0.00027671,2]
[332532583,1721288109213,-1541.61,0.00027671,2]
[332532584,1721288109227,-1497.76,0.00027671,2]
[332532585,1721288109241,-923.36,0.00027671,2]
[332532586,1721288109255,-773.79,0.00027671,2]
[332532587,1721288109272,-698.16,0.00027671,2]
[332532588,1721288109287,-1777.63,0.00027671,2]
[332532589,1721288109302,-1751.66,0.00027671,2]
[332532590,1721288109317,-748.62,0.00027671,2]
[332532591,1721288109331,-1440.65,0.00027671,2]
[332532592,1721288109345,-1459.37,0.00027671,2]
[332532593,1721288109358,-834.65,0.00027671,2]
[332532594,1721288109372,-574.9,0.00027671,2]
[332532595,1721288109385,-967.34,0.00027671,2]
[332532596,1721288109400,-600.34,0.00027671,2]
[332532597,1721288109415,-945.46,0.00027671,2]
[332532598,1721288109430,-6789.46,0.00027671,2]
[332532599,1721288109443,-500.0,0.00027671,2]
[332532600,1721288109457,-702.74,0.00027671,2]
[332532601,1721288109472,-1649.03,0.00027671,2]
[332532602,1721288109486,-846.83,0.00027671,2]
[332532603,1721288109500,-1351.16,0.00027671,2]
[332532604,1721288109514,-3838.48,0.00027671,2]
[332532605,1721288109529,-727.83,0.00027671,2]
[332532606,1721288109543,-1099.8,0.00027671,2]
[332532607,1721288109558,-592.88,0.00027671,2]
[332532608,1721288109572,-1314.69,0.00027671,2]
[332532609,1721288109587,-660.25,0.00027671,2]
[332532610,1721288109601,-690.8,0.00027671,2]
[332532611,1721288109614,-1225.2,0.00027671,2]
[332532612,1721288109628,-758.27,0.00027671,2]
[332532613,1721288109643,-815.9,0.00027671,2]
[332532614,1721288109656,-1445.6,0.00027671,2]
[332532615,1721288109669,-1211.24,0.00027671,2]
[332532616,1721288109685,-764.9,0.00027671,2]
[332532617,1721288109700,-1017.79,0.00027671,2]
[332532618,1721288109715,-819.77,0.00027671,2]
[332532619,1721288109730,-508.09,0.00027671,2]
[332532620,1721288109744,-1121.8,0.00027671,2]
[332532621,1721288109764,-4510.49,0.00027671,2]
[332532622,1721288109777,-843.65,0.00027671,2]
[332532623,1721288109790,-548.62,0.00027671,2]
[332532624,1721288109803,-732.51,0.00027671,2]
[332532625,1721288109817,-500.0,0.00027671,2]
[332532626,1721288109831,-727.51,0.00027671,2]
[332532627,1721288109845,-699.69,0.00027671,2]
[332532628,1721288109860,-780.84,0.00027671,2]
[332532629,1721288109875,-615.98,0.00027671,2]
[332532630,1721288109889,-985.19,0.00027671,2]
[332532631,1721288109904,-2219.16,0.00027671,2]
[332532632,1721288109920,-661.47,0.00027671,2]
[332532633,1721288109934,-2008.64,0.00027671,2]
[332532634,1721288109948,-707.34,0.00027671,2]
[332532635,1721288109962,-776.84,0.00027671,2]
[332532636,1721288109976,-2197.33,0.00027671,2]
[332532637,1721288109990,-813.45,0.00027671,2]
[332532638,1721288110004,-1222.6,0.00027671,2]
[332532639,1721288110019,-685.95,0.00027671,2]
[332532640,1721288110034,-885.84,0.00027671,2]
[332532641,1721288110050,-589.04,0.00027671,2]
[332532642,1721288110064,-703.44,0.00027671,2]
[332532643,1721288110078,-919.77,0.00027671,2]
[332532644,1721288110092,-699.95,0.00027671,2]
[332532645,1721288110106,-2956.08,0.00027671,2]
[332532646,1721288110120,-500.0,0.00027671,2]
[332532647,1721288110134,-758.73,0.00027671,2]
[332532648,1721288110149,-1023.99,0.00027671,2]
[332532649,1721288110163,-6067.08,0.00027671,2]
[332532650,1721288110178,-500.0,0.00027671,2]
[332532651,1721288110193,-893.45,0.00027671,2]
[332532652,1721288110208,-1159.85,0.00027671,2]
[332532653,1721288110222,-799.42,0.00027671,2]
[332532654,1721288110236,-150.0,0.00027686,2]
[332532655,1721288110251,-1518.1,0.000277,2]
[332532656,1721288110267,-1013.98,0.000277,2]
[332532657,1721288110282,-885.76,0.00027714,2]
[332532658,1721288110297,-588.0,0.00027726,2]
[332532659,1721288110311,-391.0,0.0002783,15]
[332532660,1721288110325,-2000.0,0.000279,2]
[332532661,1721288110340,-10000.0,0.000279,4]
[332532662,1721288110353,-1548.92,0.00027945,2]
[332532663,1721288110367,-903.45,0.00027945,2]
[332532664,1721288110383,-873.73,0.00027945,2]
[332532665,1721288110400,-1146.78,0.00027945,2]
[332532666,1721288110416,-755.65,0.00027945,2]
[332532667,1721288110431,-1117.53,0.00027945,2]
[332532668,1721288111056,-1014.34,0.00027945,2]
[332532669,1721288111066,-500.0,0.00027945,2]
[332532670,1721288111076,-926.9,0.00027945,2]
[332532671,1721288111086,-559.52,0.00027945,2]
[332532672,1721288111096,-1202.57,0.00027945,2]
[332532673,1721288111107,-686.6,0.00027945,2]
[332532674,1721288111117,-698.02,0.00027945,2]
[332532675,1721288111126,-500.0,0.00027945,2]
[332532676,1721288111136,-568.02,0.00027945,2]
[332532677,1721288111147,-506.5,0.00027945,2]
[332532678,1721288111157,-579.89,0.00027945,2]
[332532679,1721288111167,-888.04,0.00027945,2]
[332532680,1721288111176,-877.77,0.00027945,2]
[332532681,1721288111187,-500.0,0.00027945,2]
[332532682,1721288111196,-689.95,0.00027945,2]
[332532683,1721288111206,-887.13,0.00027945,2]
[332532684,1721288111216,-512.75,0.00027945,2]
[332532685,1721288111226,-500.0,0.00027945,2]
[332532686,1721288111236,-918.48,0.00027945,2]
[332532687,1721288111246,-1130.16,0.00027945,2]
[332532688,1721288111256,-631.9975934,0.00027945,2]
[332532689,1721288111268,-500.0,0.00027945,2]
[332532690,1721288111278,-1018.39,0.00027945,2]
[332532691,1721288111288,-582.9,0.00027945,2]
[332532692,1721288111298,-629.0,0.00027945,2]
[332532693,1721288111307,-682.95,0.00027945,2]
[332532694,1721288111317,-1036.97,0.00027945,2]
[332532695,1721288111327,-688.35,0.00027945,2]
[332532696,1721288111337,-851.26,0.00027945,2]
[332532697,1721288111347,-1046.3,0.00027945,2]
[332532698,1721288111357,-988.22,0.00027945,2]
[332532699,1721288111367,-864.94,0.00027945,2]
[332532700,1721288111377,-704.02,0.00027945,2]
[332532701,1721288111387,-791.51,0.00027945,2]
[332532702,1721288111396,-637.96,0.00027945,2]
[332532703,1721288111406,-645.57,0.00027945,2]
[332532704,1721288111416,-632.83,0.00027945,2]
[332532705,1721288111426,-654.28,0.00027945,2]
[332532706,1721288111436,-616.18,0.00027945,2]
[332532707,1721288111445,-673.07,0.00027945,2]
[332532708,1721288111455,-530.94,0.00027945,2]
[332532709,1721288111465,-527.98,0.00027945,2]
[332532710,1721288111475,-547.08,0.00027945,2]
[332532711,1721288111484,-559.75,0.00027945,2]
[332532712,1721288111494,-611.76,0.00027945,2]
[332532713,1721288111504,-1173.23,0.00027945,2]
[332532714,1721288111517,-753.22,0.00027945,2]
[332532715,1721288111527,-709.13,0.00027945,2]
[332532716,1721288111537,-571.73,0.00027945,2]
[332532717,1721288111547,-679.34,0.00027945,2]
[332532718,1721288111557,-393.7,0.00027945,2]
[332532719,1721288111567,-771.42,0.00027945,2]
[332532720,1721288111577,-1055.96,0.00027945,2]
[332532721,1721288111587,-703.28,0.00027945,2]
[332532722,1721288111597,-750.7,0.00027945,2]
[332532723,1721288111607,-756.04,0.00027945,2]
[332532724,1721288111621,-1168.54,0.00027945,2]
[332532725,1721288111631,-1538.77,0.00027945,2]
[332532726,1721288111641,-1229.0,0.00027945,2]
[332532727,1721288111651,-926.42,0.00027945,2]
[332532728,1721288111660,-1335.62,0.00027945,2]
[332532729,1721288111671,-984.25,0.00027945,2]
[332532730,1721288111682,-1387.55,0.00027945,2]
[332532731,1721288111692,-925.35,0.00027945,2]
[332532732,1721288111702,-542.52,0.00027945,2]
[332532733,1721288111713,-267.08884473,0.00027945,2]
[332532734,1721288111722,-1699.26,0.00027945,2]
[332532735,1721288111732,-542.08,0.00027945,2]
[332532736,1721288111742,-560.08,0.00027945,2]
[332532737,1721288111753,-334.87725329,0.00027945,2]
[332532738,1721288111763,-1355.83,0.00027945,2]
[332532739,1721288111772,-505.95,0.00027945,2]
[332532740,1721288111782,-628.74,0.00027945,2]
[332532741,1721288111792,-538.06,0.00027945,2]
[332532742,1721288111803,-676.4,0.00027945,2]
[332532743,1721288111812,-1065.58,0.00027945,2]
[332532744,1721288111823,-1171.41,0.00027945,2]
[332532745,1721288111833,-1408.6,0.00027945,7]
[332532746,1721288111843,-872.67,0.00027945,2]
[332532747,1721288111853,-1348.92,0.00027945,2]
[332532748,1721288111863,-838.7,0.00027945,2]
[332532749,1721288111873,-503.03,0.00027945,2]
[332532750,1721288111883,-216.76355652,0.00027945,2]
[332532751,1721288111893,-802.6,0.00027945,2]
[332532752,1721288111903,-780.83,0.00027945,2]
[332532753,1721288111913,-579.37,0.00027945,2]
[332532754,1721288111923,-781.35,0.00027945,2]
[332532755,1721288111933,-724.1,0.00027945,2]
[332532756,1721288111944,-568.82,0.00027945,2]
[332532757,1721288111954,-771.73,0.00027945,2]
[332532758,1721288111964,-1353.92,0.00027945,2]
[332532759,1721288111974,-1387.82,0.00027945,2]
[332532760,1721288111984,-1287.42,0.00027945,2]
[332532761,1721288111994,-553.81,0.00027945,2]
[332532762,1721288112004,-500.0,0.00027945,2]
[332532763,1721288112013,-911.72,0.00027945,2]
[332532764,1721288112023,-972.31,0.00027945,2]
[332532765,1721288112034,-682.98,0.00027945,2]
[332532766,1721288112044,-1109.76,0.00027945,2]
[332532767,1721288112054,-819.38,0.00027945,2]
[332532768,1721288112064,-836.26,0.00027945,2]
[332532769,1721288112074,-544.15,0.00027945,2]
[332532770,1721288112084,-744.75,0.00027945,2]
[332532771,1721288112095,-659.68,0.00027945,2]
[332532772,1721288112105,-1074.46,0.00027945,2]
[332532773,1721288112115,-918.1,0.00027945,2]
[332532774,1721288112125,-637.37,0.00027945,2]
[332532775,1721288112134,-941.47,0.00027945,2]
[332532776,1721288112144,-1715.0,0.00027945,2]
[332532777,1721288112154,-808.27,0.00027945,2]
[332532778,1721288112164,-543.92,0.00027945,2]
[332532779,1721288112175,-503.93692828,0.00027945,2]
[332532780,1721288112185,-848.98,0.00027945,2]
[332532781,1721288112195,-702.02,0.00027945,2]
[332532782,1721288112205,-833.62,0.00027945,2]
[332532783,1721288112214,-747.03,0.00027945,2]
[332532784,1721288112224,-694.12,0.00027945,2]
[332532785,1721288112233,-1393.96,0.00027945,2]
[332532786,1721288112243,-923.3,0.00027945,2]
[332532787,1721288112252,-864.51,0.00027945,2]
[332532788,1721288112264,-874.63,0.00027945,2]
[332532789,1721288112274,-572.13,0.00027945,2]
[332532790,1721288112284,-768.44,0.00027945,2]
[332532791,1721288112294,-919.94,0.00027945,2]
[332532792,1721288112304,-567.01,0.00027945,2]
[332532793,1721288112314,-750.97,0.00027945,2]
[332532794,1721288112323,-664.81,0.00027945,2]
[332532795,1721288112333,-1439.37,0.00027945,2]
[332532796,1721288112343,-820.24,0.00027945,2]
[332532797,1721288112352,-659.88,0.00027945,2]
[332532798,1721288112362,-675.36,0.00027945,2]
[332532799,1721288112371,-1239.37,0.00027945,2]
[332532800,1721288112381,-587.43,0.00027945,2]
[332532801,1721288112391,-1037.75,0.00027945,2]
[332532802,1721288112400,-1312.95,0.00027945,2]
[332532803,1721288112411,-759.36,0.00027945,2]
[332532804,1721288112420,-589.69,0.00027945,2]
[332532805,1721288112430,-589.59,0.00027945,2]
[332532806,1721288112440,-1508.18,0.00027945,2]
[332532807,1721288112450,-519.36,0.00027945,2]
[332532808,1721288112460,-465.48,0.00027945,2]
[332532809,1721288112470,-161.21721121,0.00027945,2]
[332532810,1721288112481,-1570.3,0.00027945,2]
[332532811,1721288112491,-684.5,0.00027945,2]
[332532812,1721288112502,-1825.46,0.00027945,2]
[332532813,1721288112513,-778.25,0.00027945,2]
[332532814,1721288112523,-647.56,0.00027945,2]
[332532815,1721288112533,-1501.12,0.00027945,2]
[332532816,1721288112543,-649.76,0.00027945,2]
[332532817,1721288112554,-698.16,0.00027945,2]
[332532818,1721288112564,-838.21,0.00027945,2]
[332532819,1721288112574,-832.49,0.00027945,2]
[332532820,1721288112584,-635.85,0.00027945,2]
[332532821,1721288112594,-1002.59,0.00027945,2]
[332532822,1721288112603,-1264.99,0.00027945,2]
[332532823,1721288112613,-558.12,0.00027945,2]
[332532824,1721288112623,-667.65,0.00027945,2]
[332532825,1721288112633,-828.72,0.00027945,2]
[332532826,1721288112642,-825.13,0.00027945,2]
[332532827,1721288112652,-935.3,0.00027945,2]
[332532828,1721288112662,-572.09,0.00027945,2]
[332532829,1721288112676,-801.73,0.00027945,2]
[332532830,1721288112685,-829.06,0.00027945,2]
[332532831,1721288112695,-1500.37,0.00027945,2]
[332532832,1721288112704,-533.21,0.00027945,2]
[332532833,1721288112713,-614.68,0.00027945,2]
[332532834,1721288112723,-839.63,0.00027945,2]
[332532835,1721288112734,-1099.16,0.00027945,2]
[332532836,1721288112745,-993.33,0.00027945,2]
[332532837,1721288112755,-2190.92,0.00027945,2]
[332532838,1721288112766,-769.89,0.00027945,2]
[332532839,1721288112775,-1387.79,0.00027945,2]
[332532840,1721288112785,-860.39,0.00027945,2]
[332532841,1721288112794,-916.75,0.00027945,2]
[332532842,1721288112805,-500.0,0.00027945,2]
[332532843,1721288112815,-621.09,0.00027945,2]
[332532844,1721288112824,-2607.0,0.00027945,2]
[332532845,1721288112834,-934.95,0.00027945,2]
[332532846,1721288112843,-1185.83,0.00027945,2]
[332532847,1721288112853,-634.32,0.00027945,2]
[332532848,1721288112862,-714.68,0.00027945,2]
[332532849,1721288112871,-706.1,0.00027945,2]
[332532850,1721288112882,-992.23,0.00027945,2]
[332532851,1721288112892,-719.06,0.00027945,2]
[332532852,1721288112902,-879.71,0.00027945,2]
[332532853,1721288112911,-962.74,0.00027945,2]
[332532854,1721288112921,-4194.17,0.00027945,2]
[332532855,1721288112930,-796.16,0.00027945,2]
[332532856,1721288112940,-1343.67,0.00027945,2]
[332532857,1721288112949,-845.59,0.00027945,2]
[332532858,1721288112959,-607.98,0.00027945,2]
[332532859,1721288112969,-884.87,0.00027945,2]
[332532860,1721288112978,-563.78,0.00027945,2]
[332532861,1721288112988,-664.21,0.00027945,2]
[332532862,1721288112997,-619.48,0.00027945,2]
[332532863,1721288113006,-1023.41,0.00027945,2]
[332532864,1721288113018,-4286.57,0.00027945,2]
[332532865,1721288113027,-759.2,0.00027945,2]
[332532866,1721288113037,-664.93,0.00027945,2]
[332532867,1721288113047,-1303.0,0.00027945,2]
[332532868,1721288113056,-799.99,0.00027945,2]
[332532869,1721288113066,-779.15,0.00027945,2]
[332532870,1721288113076,-705.02,0.00027945,2]
[332532871,1721288113085,-699.13,0.00027945,2]
[332532872,1721288113095,-712.43,0.00027945,2]
[332532873,1721288113104,-615.07,0.00027945,2]
[332532874,1721288113113,-640.55,0.00027945,2]
[332532875,1721288113123,-840.9,0.00027945,2]
[332532876,1721288113132,-842.93,0.00027945,2]
[332532877,1721288113142,-1213.95,0.00027945,2]
[332532878,1721288113151,-515.65,0.00027945,2]
[332532879,1721288113161,-964.94,0.00027945,2]
[332532880,1721288113172,-592.68,0.00027945,2]
[332532881,1721288113181,-6375.98,0.00027945,2]
[332532882,1721288113191,-1037.41,0.00027945,2]
[332532883,1721288113200,-1379.21,0.00027945,2]
[332532884,1721288113210,-559.08,0.00027945,2]
[332532885,1721288113219,-1444.47,0.00027945,2]
[332532886,1721288113228,-1777.51,0.00027945,2]
[332532887,1721288113238,-1147.47,0.00027945,2]
[332532888,1721288113247,-1083.93,0.00027945,2]
[332532889,1721288113257,-815.97,0.00027945,2]
[332532890,1721288113272,-1394.22,0.00027945,2]
[332532891,1721288113281,-1149.47,0.00027945,2]
[332532892,1721288113291,-588.95,0.00027945,2]
[332532893,1721288113300,-7884.99,0.00027945,2]
[332532894,1721288113311,-1142.52,0.00027945,2]
[332532895,1721288113321,-751.24,0.00027945,2]
[332532896,1721288113330,-518.01,0.00027945,2]
[332532897,1721288113339,-2350.96,0.00027945,2]
[332532898,1721288113349,-1047.43,0.00027945,2]
[332532899,1721288113358,-9262.82,0.00027945,2]
[332532900,1721288113368,-576.17,0.00027945,2]
[332532901,1721288113379,-817.71,0.00027945,2]
[332532902,1721288113388,-567.84,0.00027945,2]
[332532903,1721288113398,-943.1,0.00027945,2]
[332532904,1721288113407,-559.22,0.00027945,2]
[332532905,1721288113417,-671.4,0.00027945,2]
[332532906,1721288113427,-595.86,0.00027945,2]
[332532907,1721288113436,-1700.34,0.00027945,2]
[332532908,1721288113446,-897.02,0.00027945,2]
[332532909,1721288113455,-709.03,0.00027945,2]
[332532910,1721288113465,-812.96,0.00027945,2]
[332532911,1721288113474,-714.81,0.00027945,2]
[332532912,1721288113485,-763.5,0.00027945,2]
[332532913,1721288113494,-919.85,0.00027945,2]
[332532914,1721288113503,-1583.56,0.00027945,2]
[332532915,1721288113516,-634.02,0.00027945,2]
[332532916,1721288113525,-915.85,0.00027945,2]
[332532917,1721288113535,-1450.66,0.00027945,2]
[332532918,1721288113544,-948.76,0.00027945,2]
[332532919,1721288113553,-1051.57,0.00027945,2]
[332532920,1721288113563,-2003.88,0.00027945,2]
[332532921,1721288113573,-601.06,0.00027945,2]
[332532922,1721288113583,-796.81,0.00027945,2]
[332532923,1721288113592,-1013.83,0.00027945,2]
[332532924,1721288113602,-515.65,0.00027945,2]
[332532925,1721288113611,-544.27,0.00027945,2]
[332532926,1721288113620,-503.35,0.00027945,2]
[332532927,1721288113629,-1299.19,0.00027945,2]
[332532928,1721288113639,-708.78,0.00027945,2]
[332532929,1721288113649,-1547.31,0.00027945,2]
[332532930,1721288113659,-612.66,0.00027945,2]
[332532931,1721288113670,-957.7,0.00027945,2]
[332532932,1721288113683,-999.04,0.00027945,2]
[332532933,1721288113694,-677.55,0.00027945,2]
[332532934,1721288113704,-549.83,0.00027945,2]
[332532935,1721288113715,-798.47,0.00027945,2]
[332532936,1721288114017,-695.01,0.00027945,2]
[332532937,1721288114027,-518.09,0.00027945,2]
[332532938,1721288114036,-813.28,0.00027945,2]
[332532939,1721288114045,-1656.81,0.00027945,2]
[332532940,1721288114055,-945.22,0.00027945,2]
[332532941,1721288114064,-947.17,0.00027945,2]
[332532942,1721288114074,-539.79,0.00027945,2]
[332532943,1721288114084,-706.37,0.00027945,2]
[332532944,1721288114093,-1135.75,0.00027945,2]
[332532945,1721288114102,-673.53,0.00027945,2]
[332532946,1721288114112,-3128.96,0.00027945,2]
[332532947,1721288114122,-557.31,0.00027945,2]
[332532948,1721288114131,-669.1,0.00027945,2]
[332532949,1721288114140,-3223.32,0.00027945,2]
[332532950,1721288114150,-842.49,0.00027945,2]
[332532951,1721288114159,-836.84,0.00027945,2]
[332532952,1721288114168,-542.57,0.00027945,2]
[332532953,1721288114178,-884.02,0.00027945,2]
[332532954,1721288114187,-1416.46,0.00027945,2]
[332532955,1721288114197,-525.77,0.00027945,2]
[332532956,1721288114207,-808.77,0.00027945,2]
[332532957,1721288114216,-2204.96,0.00027945,2]
[332532958,1721288114226,-813.18,0.00027945,2]
[332532959,1721288114236,-888.04,0.00027945,2]
[332532960,1721288114248,-617.34,0.00027945,2]
[332532961,1721288114259,-503.15,0.00027945,2]
[332532962,1721288114272,-154.73890407,0.00027945,2]
[332532963,1721288114282,-550.97,0.00027945,2]
[332532964,1721288114291,-556.49,0.00027945,2]
[332532965,1721288114301,-1258.11,0.00027945,2]
[332532966,1721288114310,-1541.61,0.00027945,2]
[332532967,1721288114320,-1497.76,0.00027945,2]
[332532968,1721288114329,-923.36,0.00027945,2]
[332532969,1721288114339,-773.79,0.00027945,2]
[332532970,1721288114349,-698.16,0.00027945,2]
[332532971,1721288114358,-1777.63,0.00027945,2]
[332532972,1721288114368,-1751.66,0.00027945,2]
[332532973,1721288114377,-748.62,0.00027945,2]
[332532974,1721288114387,-1440.65,0.00027945,2]
[332532975,1721288114396,-1459.37,0.00027945,2]
[332532976,1721288114406,-834.65,0.00027945,2]
[332532977,1721288114415,-574.9,0.00027945,2]
[332532978,1721288114424,-967.34,0.00027945,2]